[Event "*** Titled Tuesday Blitz"]
[Site "Chess.com"]
[Date "2019.03.05"]
[Round "5"]
[White "vgyogi"]
[Black "quesfr"]
[Result "1/2-1/2"]
[WhiteElo "2149"]
[BlackElo "2228"]
[TimeControl "180+2"]
[EndTime "14:13:06 PST"]
[Termination "Game drawn by agreement"]

1. d4 {[%clk 0:03:01.9]} 1... d5 {[%clk 0:03:00.4]} 2. Bg5 {[%clk 0:02:59.9]}
2... g6 {[%clk 0:02:47.3]} 3. Nf3 {[%clk 0:02:53.8]} 3... Bg7 {[%clk 0:02:48.3]}
4. Nbd2 {[%clk 0:02:50.7]} 4... Nf6 {[%clk 0:02:49]} 5. c3 {[%clk 0:02:51.5]}
5... O-O {[%clk 0:02:46.1]} 6. e3 {[%clk 0:02:52.2]} 6... b6 {[%clk 0:02:44.8]}
7. Bd3 {[%clk 0:02:52.7]} 7... c5 {[%clk 0:02:40.7]} 8. O-O {[%clk 0:02:53.4]}
8... Ba6 {[%clk 0:02:40]} 9. Bxa6 {[%clk 0:02:52.2]} 9... Nxa6 {[%clk 0:02:41]}
10. a4 {[%clk 0:02:46.4]} 10... Nc7 {[%clk 0:02:35.3]} 11. Ne5 {[%clk
0:02:42.4]} 11... Ne6 {[%clk 0:02:31.6]} 12. Bh4 {[%clk 0:02:40]} 12... Re8
{[%clk 0:02:10.2]} 13. h3 {[%clk 0:02:36.2]} 13... Qc8 {[%clk 0:01:55.9]} 14.
Qe2 {[%clk 0:02:25.4]} 14... Nd7 {[%clk 0:01:52.1]} 15. f4 {[%clk 0:02:10.5]}
15... Nxe5 {[%clk 0:01:48.8]} 16. fxe5 {[%clk 0:02:10.3]} 16... Qd7 {[%clk
0:01:33.5]} 17. Rf2 {[%clk 0:01:49.4]} 17... Rf8 {[%clk 0:01:33.5]} 18. Nf3
{[%clk 0:01:27.9]} 18... h6 {[%clk 0:01:24.2]} 19. Nh2 {[%clk 0:01:12.9]} 19...
a6 {[%clk 0:01:04.9]} 20. Rff1 {[%clk 0:00:54.4]} 20... b5 {[%clk 0:01:04.4]}
21. axb5 {[%clk 0:00:54.6]} 21... axb5 {[%clk 0:01:05.2]} 22. Qf3 {[%clk
0:00:51.6]} 22... Rxa1 {[%clk 0:00:56.7]} 23. Rxa1 {[%clk 0:00:52.2]} 23... Qb7
{[%clk 0:00:53.8]} 24. Nf1 {[%clk 0:00:43.3]} 24... Ra8 {[%clk 0:00:49]} 25. Rd1
{[%clk 0:00:38.2]} 25... b4 {[%clk 0:00:47.2]} 26. dxc5 {[%clk 0:00:38.2]} 26...
bxc3 {[%clk 0:00:43]} 27. bxc3 {[%clk 0:00:38.5]} 27... Bxe5 {[%clk 0:00:40.2]}
28. Rxd5 {[%clk 0:00:37.8]} 28... Bxc3 {[%clk 0:00:38.3]} 29. Bf2 {[%clk
0:00:25.8]} 29... Rd8 {[%clk 0:00:13.7]} 30. Rxd8+ {[%clk 0:00:23.8]} 30... Nxd8
{[%clk 0:00:15.6]} 31. Qxb7 {[%clk 0:00:23.1]} 31... Nxb7 {[%clk 0:00:17.5]} 32.
c6 {[%clk 0:00:24.2]} 32... Nd6 {[%clk 0:00:18.6]} 33. e4 {[%clk 0:00:23.6]}
33... Ba5 {[%clk 0:00:16]} 34. Ne3 {[%clk 0:00:23.3]} 34... e6 {[%clk
0:00:16.1]} 35. e5 {[%clk 0:00:22.6]} 35... Nb5 {[%clk 0:00:16.2]} 36. Nc4
{[%clk 0:00:23.3]} 36... Bc7 {[%clk 0:00:17]} 37. Bb6 {[%clk 0:00:23.4]} 37...
Bxb6+ {[%clk 0:00:16.2]} 38. Nxb6 {[%clk 0:00:24.2]} 38... Kf8 {[%clk 0:00:17]}
39. Nc8 {[%clk 0:00:14.7]} 39... Ke8 {[%clk 0:00:17.2]} 40. Nd6+ {[%clk
0:00:15.2]} 40... Nxd6 {[%clk 0:00:17.7]} 41. exd6 {[%clk 0:00:16.3]} 41... e5
{[%clk 0:00:17.3]} 42. Kf2 {[%clk 0:00:17.8]} 42... f5 {[%clk 0:00:18.4]} 43.
Ke3 {[%clk 0:00:19.2]} 43... e4 {[%clk 0:00:18.9]} 44. Kf4 {[%clk 0:00:19.8]}
44... g5+ {[%clk 0:00:19.1]} 45. Ke3 {[%clk 0:00:19.8]} 45... h5 {[%clk
0:00:19.6]} 46. h4 {[%clk 0:00:16.7]} 46... gxh4 {[%clk 0:00:18.2]} 47. Kf4
{[%clk 0:00:17.5]} 47... Kd8 {[%clk 0:00:18.5]} 48. Ke3 {[%clk 0:00:17.8]} 48...
Ke8 {[%clk 0:00:18.4]} 49. Kf4 {[%clk 0:00:18.9]} 49... Kd8 {[%clk 0:00:19.5]}
50. Ke3 {[%clk 0:00:18.3]} 1/2-1/2

[Event "*** Titled Tuesday Blitz"]
[Site "Chess.com"]
[Date "2019.03.05"]
[Round "5"]
[White "Karina_Oparina"]
[Black "senecacrane"]
[Result "1-0"]
[WhiteElo "2170"]
[BlackElo "2288"]
[TimeControl "180+2"]
[EndTime "14:13:12 PST"]
[Termination "Karina_Oparina won by resignation"]

1. Nf3 {[%clk 0:02:59]} 1... d5 {[%clk 0:03:00.7]} 2. g3 {[%clk 0:02:58.2]} 2...
e6 {[%clk 0:03:01.6]} 3. Bg2 {[%clk 0:02:58.3]} 3... Nf6 {[%clk 0:03:03.2]} 4.
d4 {[%clk 0:02:58.3]} 4... b5 {[%clk 0:03:04.1]} 5. O-O {[%clk 0:02:57.9]} 5...
Be7 {[%clk 0:03:02.3]} 6. c3 {[%clk 0:02:58.5]} 6... O-O {[%clk 0:03:00]} 7. a4
{[%clk 0:02:59.5]} 7... b4 {[%clk 0:03:01.1]} 8. Bf4 {[%clk 0:02:56.1]} 8... Bb7
{[%clk 0:02:54.3]} 9. Nbd2 {[%clk 0:02:54.3]} 9... a5 {[%clk 0:02:49.1]} 10. Ne5
{[%clk 0:02:49.4]} 10... Nfd7 {[%clk 0:02:46.9]} 11. Nb3 {[%clk 0:02:46.8]}
11... Nxe5 {[%clk 0:02:46]} 12. Bxe5 {[%clk 0:02:46.8]} 12... Nd7 {[%clk
0:02:46.6]} 13. Bf4 {[%clk 0:02:44.8]} 13... c5 {[%clk 0:02:28.6]} 14. dxc5
{[%clk 0:02:41.1]} 14... Nxc5 {[%clk 0:02:27.3]} 15. Nxc5 {[%clk 0:02:41.6]}
15... Bxc5 {[%clk 0:02:28.8]} 16. c4 {[%clk 0:02:42.7]} 16... Qf6 {[%clk
0:02:18.8]} 17. cxd5 {[%clk 0:02:39.9]} 17... Rfd8 {[%clk 0:02:15.9]} 18. Qc1
{[%clk 0:02:35]} 18... Bd4 {[%clk 0:02:12.8]} 19. Bg5 {[%clk 0:02:32.9]} 19...
Qe5 {[%clk 0:01:59.9]} 20. Bxd8 {[%clk 0:02:15.3]} 20... Rxd8 {[%clk 0:02:00.3]}
21. dxe6 {[%clk 0:02:04]} 21... Bxg2 {[%clk 0:01:49.5]} 22. exf7+ {[%clk
0:02:03.9]} 22... Kxf7 {[%clk 0:01:51.4]} 23. Kxg2 {[%clk 0:02:03.4]} 23... Bxb2
{[%clk 0:01:52.7]} 24. Qb1 {[%clk 0:01:50.2]} 24... Bxa1 {[%clk 0:01:49.2]} 25.
Qxa1 {[%clk 0:01:50.3]} 25... Qe4+ {[%clk 0:01:34.8]} 26. Kg1 {[%clk 0:01:47.3]}
26... Qxe2 {[%clk 0:01:36.4]} 27. Re1 {[%clk 0:01:46.6]} 27... Qf3 {[%clk
0:01:37.9]} 28. Qe5 {[%clk 0:01:38.2]} 28... Qf6 {[%clk 0:01:36.8]} 29. Qc7+
{[%clk 0:01:36.3]} 29... Kg6 {[%clk 0:01:26.6]} 30. Qxa5 {[%clk 0:01:32.6]}
30... Rf8 {[%clk 0:01:28]} 31. Qc5 {[%clk 0:01:20.8]} 31... b3 {[%clk
0:01:23.1]} 32. Rb1 {[%clk 0:01:16.7]} 32... Rb8 {[%clk 0:01:17.8]} 33. a5
{[%clk 0:01:09.1]} 33... Qf5 {[%clk 0:01:04.4]} 34. Qd6+ {[%clk 0:00:58.7]}
34... Kh5 {[%clk 0:01:05.3]} 35. Rb2 {[%clk 0:00:57.5]} 35... Rc8 {[%clk
0:01:02.5]} 36. Qd1+ {[%clk 0:00:55.7]} 36... Qg4 {[%clk 0:00:48.9]} 37. Qxg4+
{[%clk 0:00:54.4]} 37... Kxg4 {[%clk 0:00:50.1]} 38. Rxb3 {[%clk 0:00:55.5]}
38... Ra8 {[%clk 0:00:51.8]} 39. Ra3 {[%clk 0:00:55.5]} 39... g5 {[%clk
0:00:53]} 40. Kg2 {[%clk 0:00:54.9]} 40... Ra6 {[%clk 0:00:53.4]} 41. Ra4+
{[%clk 0:00:53.7]} 41... Kf5 {[%clk 0:00:54.7]} 42. Kf3 {[%clk 0:00:49.3]} 42...
h5 {[%clk 0:00:51.8]} 43. h3 {[%clk 0:00:49.7]} 43... Ke5 {[%clk 0:00:47.8]} 44.
h4 {[%clk 0:00:48.5]} 44... g4+ {[%clk 0:00:47.1]} 45. Ke3 {[%clk 0:00:48.5]}
45... Kf5 {[%clk 0:00:48.7]} 46. Kd4 {[%clk 0:00:41.8]} 46... Ke6 {[%clk
0:00:46.4]} 47. Kc5 {[%clk 0:00:42.4]} 47... Ke5 {[%clk 0:00:44.1]} 48. Kb5
{[%clk 0:00:42.6]} 48... Rf6 {[%clk 0:00:45.8]} 49. Ra2 {[%clk 0:00:40.2]} 49...
Rf3 {[%clk 0:00:43.7]} 50. a6 {[%clk 0:00:40]} 50... Rb3+ {[%clk 0:00:44.8]} 51.
Kc4 {[%clk 0:00:39.2]} 51... Rb8 {[%clk 0:00:44.9]} 52. a7 {[%clk 0:00:40.2]}
52... Ra8 {[%clk 0:00:46.3]} 53. Kc5 {[%clk 0:00:41.3]} 53... Ke6 {[%clk
0:00:44.4]} 54. Kb6 {[%clk 0:00:41.6]} 54... Kd7 {[%clk 0:00:26.9]} 55. Kb7
{[%clk 0:00:41.8]} 55... Rc8 {[%clk 0:00:28.3]} 56. Rd2+ {[%clk 0:00:41.3]} 1-0

[Event "*** Titled Tuesday Blitz"]
[Site "Chess.com"]
[Date "2019.03.05"]
[Round "5"]
[White "witcher8"]
[Black "Denis_Palkovich"]
[Result "0-1"]
[WhiteElo "2347"]
[BlackElo "2242"]
[TimeControl "180+2"]
[EndTime "14:13:17 PST"]
[Termination "Denis_Palkovich won by checkmate"]

1. e4 {[%clk 0:03:01.9]} 1... c6 {[%clk 0:02:59.4]} 2. d4 {[%clk 0:03:02.4]}
2... d5 {[%clk 0:02:59.5]} 3. e5 {[%clk 0:03:03.6]} 3... c5 {[%clk 0:02:59.8]}
4. dxc5 {[%clk 0:03:03.3]} 4... e6 {[%clk 0:03:00.2]} 5. Nf3 {[%clk 0:02:51.2]}
5... Bxc5 {[%clk 0:02:59.7]} 6. a3 {[%clk 0:02:52.6]} 6... Ne7 {[%clk
0:02:58.3]} 7. b4 {[%clk 0:02:53]} 7... Bb6 {[%clk 0:02:59.5]} 8. Bb2 {[%clk
0:02:53.8]} 8... O-O {[%clk 0:02:50.1]} 9. Bd3 {[%clk 0:02:55.1]} 9... Ng6
{[%clk 0:02:45]} 10. h4 {[%clk 0:02:49.3]} 10... f6 {[%clk 0:02:26.4]} 11. h5
{[%clk 0:02:32.9]} 11... Nxe5 {[%clk 0:02:22.3]} 12. h6 {[%clk 0:02:19.3]} 12...
Nxd3+ {[%clk 0:02:12.4]} 13. Qxd3 {[%clk 0:02:18.2]} 13... g6 {[%clk 0:02:13.4]}
14. Nc3 {[%clk 0:02:15.6]} 14... Nc6 {[%clk 0:02:12.6]} 15. O-O-O {[%clk
0:02:14.8]} 15... Ne5 {[%clk 0:02:05.8]} 16. Nxe5 {[%clk 0:02:13.9]} 16... fxe5
{[%clk 0:02:07]} 17. f3 {[%clk 0:02:15.8]} 17... Bd4 {[%clk 0:01:56.5]} 18. Kb1
{[%clk 0:02:11.6]} 18... a5 {[%clk 0:01:56.6]} 19. b5 {[%clk 0:02:11.8]} 19...
Bd7 {[%clk 0:01:54.7]} 20. a4 {[%clk 0:02:12.6]} 20... Rc8 {[%clk 0:01:55.4]}
21. Ne2 {[%clk 0:01:26.6]} 21... Bxb2 {[%clk 0:01:55.6]} 22. Kxb2 {[%clk
0:01:28.5]} 22... Qe7 {[%clk 0:01:56.9]} 23. c3 {[%clk 0:01:19.1]} 23... Rc4
{[%clk 0:01:55.2]} 24. Kb3 {[%clk 0:01:11.1]} 24... Rfc8 {[%clk 0:01:33.7]} 25.
Rc1 {[%clk 0:01:11.3]} 25... Qc5 {[%clk 0:01:10.4]} 26. Rh3 {[%clk 0:00:32.9]}
26... e4 {[%clk 0:01:09.8]} 27. fxe4 {[%clk 0:00:28.9]} 27... Rxe4 {[%clk
0:01:09.2]} 28. Nd4 {[%clk 0:00:25.9]} 28... e5 {[%clk 0:01:06.5]} 29. Nf3
{[%clk 0:00:16.7]} 29... Re3 {[%clk 0:00:42.6]} 30. Nxe5 {[%clk 0:00:02.6]}
30... Rxd3 {[%clk 0:00:36.4]} 31. Rxd3 {[%clk 0:00:04.5]} 31... Be6 {[%clk
0:00:07.8]} 32. Rd4 {[%clk 0:00:05.3]} 32... Qxd4 {[%clk 0:00:07.7]} 33. cxd4
{[%clk 0:00:05.6]} 33... Rxc1 {[%clk 0:00:08.7]} 34. Nd3 {[%clk 0:00:04.7]}
34... Rh1 {[%clk 0:00:07.9]} 35. Nc5 {[%clk 0:00:05.8]} 35... Bc8 {[%clk
0:00:07.9]} 36. Kc3 {[%clk 0:00:06.4]} 36... Rxh6 {[%clk 0:00:09]} 37. b6 {[%clk
0:00:08.3]} 37... Rh2 {[%clk 0:00:10.2]} 38. Nb3 {[%clk 0:00:09.7]} 38... Rxg2
{[%clk 0:00:10.7]} 39. Nxa5 {[%clk 0:00:11.4]} 39... h5 {[%clk 0:00:10.5]} 40.
Nb3 {[%clk 0:00:12.6]} 40... h4 {[%clk 0:00:11.5]} 41. Nc5 {[%clk 0:00:14.3]}
41... h3 {[%clk 0:00:12.2]} 42. a5 {[%clk 0:00:16.2]} 42... h2 {[%clk
0:00:13.2]} 43. Ne6 {[%clk 0:00:06.3]} 43... Bxe6 {[%clk 0:00:10.3]} 44. a6
{[%clk 0:00:07.1]} 44... h1=Q {[%clk 0:00:09.9]} 45. axb7 {[%clk 0:00:06.7]}
45... Qc1+ {[%clk 0:00:11.3]} 46. Kb4 {[%clk 0:00:06.8]} 46... Rb2+ {[%clk
0:00:11.8]} 47. Ka5 {[%clk 0:00:08.2]} 47... Qa1# {[%clk 0:00:12.9]} 0-1

[Event "*** Titled Tuesday Blitz"]
[Site "Chess.com"]
[Date "2019.03.05"]
[Round "5"]
[White "nikitakhoroshev"]
[Black "fu24"]
[Result "1-0"]
[WhiteElo "2611"]
[BlackElo "2500"]
[TimeControl "180+2"]
[EndTime "14:13:20 PST"]
[Termination "nikitakhoroshev won by resignation"]

1. e4 {[%clk 0:02:59.7]} 1... e6 {[%clk 0:03:00.4]} 2. d4 {[%clk 0:02:58.8]}
2... d5 {[%clk 0:03:01.9]} 3. Nc3 {[%clk 0:03:00.7]} 3... Bb4 {[%clk 0:03:02.8]}
4. e5 {[%clk 0:03:00.5]} 4... c5 {[%clk 0:03:03.5]} 5. a3 {[%clk 0:03:00.4]}
5... Bxc3+ {[%clk 0:03:04.3]} 6. bxc3 {[%clk 0:03:02.3]} 6... Ne7 {[%clk
0:03:06.2]} 7. a4 {[%clk 0:03:03.2]} 7... Qa5 {[%clk 0:03:02.5]} 8. Bd2 {[%clk
0:02:54.1]} 8... Nbc6 {[%clk 0:03:02.8]} 9. Nf3 {[%clk 0:02:54.5]} 9... Bd7
{[%clk 0:03:02.2]} 10. Bd3 {[%clk 0:02:55]} 10... c4 {[%clk 0:02:56.4]} 11. Be2
{[%clk 0:02:54.7]} 11... O-O-O {[%clk 0:02:57.2]} 12. O-O {[%clk 0:02:40.2]}
12... f6 {[%clk 0:02:43.7]} 13. Re1 {[%clk 0:02:30.2]} 13... fxe5 {[%clk
0:02:26.4]} 14. dxe5 {[%clk 0:02:28.2]} 14... h6 {[%clk 0:02:18.9]} 15. Nd4
{[%clk 0:02:07.1]} 15... g5 {[%clk 0:01:56.2]} 16. Bg4 {[%clk 0:02:00.2]} 16...
Nxd4 {[%clk 0:01:35.8]} 17. cxd4 {[%clk 0:02:02]} 17... Qa6 {[%clk 0:01:28.7]}
18. Bb4 {[%clk 0:02:00.1]} 18... Rde8 {[%clk 0:00:57]} 19. Bh5 {[%clk
0:01:57.6]} 19... Nf5 {[%clk 0:00:54.3]} 20. Bxe8 {[%clk 0:01:50.4]} 20... Bxe8
{[%clk 0:00:56.2]} 21. Bc5 {[%clk 0:01:41.1]} 21... Bxa4 {[%clk 0:00:56.3]} 22.
Qh5 {[%clk 0:01:16.3]} 22... b5 {[%clk 0:00:53]} 23. Qf7 {[%clk 0:01:09.2]}
23... Rd8 {[%clk 0:00:45.2]} 24. Qxa7 {[%clk 0:00:47]} 24... Qxa7 {[%clk
0:00:46.1]} 25. Bxa7 {[%clk 0:00:48.9]} 25... Kb7 {[%clk 0:00:46.8]} 26. Bc5
{[%clk 0:00:49.2]} 26... Kc6 {[%clk 0:00:47.4]} 27. c3 {[%clk 0:00:48.8]} 27...
Rd7 {[%clk 0:00:43.6]} 28. Reb1 {[%clk 0:00:48.7]} 28... Rb7 {[%clk 0:00:39.2]}
29. f3 {[%clk 0:00:45.4]} 29... Nh4 {[%clk 0:00:39.1]} 30. Kf2 {[%clk
0:00:45.2]} 30... Ng6 {[%clk 0:00:40.1]} 31. g3 {[%clk 0:00:43.7]} 31... Rf7
{[%clk 0:00:39.9]} 32. Rxa4 {[%clk 0:00:28.3]} 32... bxa4 {[%clk 0:00:40.9]} 33.
Rb6+ {[%clk 0:00:29.5]} 33... Kd7 {[%clk 0:00:42.4]} 34. Rd6+ {[%clk 0:00:28.1]}
34... Kc8 {[%clk 0:00:18.7]} 35. Rxe6 {[%clk 0:00:27.8]} 35... Rg7 {[%clk
0:00:17.7]} 36. Rc6+ {[%clk 0:00:25.2]} 36... Kb7 {[%clk 0:00:17.2]} 37. Rb6+
{[%clk 0:00:25.5]} 37... Kc7 {[%clk 0:00:18.7]} 38. Ra6 {[%clk 0:00:25.7]} 38...
Rg8 {[%clk 0:00:20.2]} 39. Ra7+ {[%clk 0:00:25.6]} 39... Kc6 {[%clk 0:00:21.1]}
40. Rxa4 {[%clk 0:00:23.4]} 40... Nh8 {[%clk 0:00:20.1]} 41. Ra6+ {[%clk
0:00:23.5]} 41... Kb5 {[%clk 0:00:21.6]} 42. Rb6+ {[%clk 0:00:24.4]} 42... Ka4
{[%clk 0:00:23.2]} 43. e6 {[%clk 0:00:25.5]} 43... Re8 {[%clk 0:00:21.8]} 44. e7
{[%clk 0:00:25.2]} 44... Nf7 {[%clk 0:00:09.3]} 45. Rf6 {[%clk 0:00:25.3]} 1-0

[Event "*** Titled Tuesday Blitz"]
[Site "Chess.com"]
[Date "2019.03.05"]
[Round "5"]
[White "vovachesss"]
[Black "ENEASZ"]
[Result "0-1"]
[WhiteElo "2587"]
[BlackElo "2368"]
[TimeControl "180+2"]
[EndTime "14:13:31 PST"]
[Termination "ENEASZ won by checkmate"]

1. c4 {[%clk 0:03:01.9]} 1... Nf6 {[%clk 0:02:58.7]} 2. b3 {[%clk 0:03:02.6]}
2... g6 {[%clk 0:02:57.9]} 3. Bb2 {[%clk 0:03:03.8]} 3... Bg7 {[%clk 0:02:59.8]}
4. Nf3 {[%clk 0:03:02.2]} 4... O-O {[%clk 0:02:59.2]} 5. e3 {[%clk 0:03:03.3]}
5... b6 {[%clk 0:02:56.8]} 6. d4 {[%clk 0:03:04]} 6... Bb7 {[%clk 0:02:58.4]} 7.
Be2 {[%clk 0:03:05.1]} 7... Ne4 {[%clk 0:02:57]} 8. O-O {[%clk 0:03:05.8]} 8...
d6 {[%clk 0:02:58]} 9. Nc3 {[%clk 0:03:05.3]} 9... Nd7 {[%clk 0:02:57.9]} 10.
Qc2 {[%clk 0:03:06.2]} 10... Ndf6 {[%clk 0:02:53.6]} 11. d5 {[%clk 0:03:07]}
11... Nxc3 {[%clk 0:02:51.7]} 12. Bxc3 {[%clk 0:03:08.9]} 12... c6 {[%clk
0:02:52.5]} 13. e4 {[%clk 0:03:02.8]} 13... b5 {[%clk 0:02:36.4]} 14. e5 {[%clk
0:02:49]} 14... dxe5 {[%clk 0:02:21]} 15. dxc6 {[%clk 0:02:49.5]} 15... Bxc6
{[%clk 0:02:17.5]} 16. Nxe5 {[%clk 0:02:50.4]} 16... Be4 {[%clk 0:02:18.1]} 17.
Qb2 {[%clk 0:02:51.7]} 17... bxc4 {[%clk 0:02:18.8]} 18. Bxc4 {[%clk 0:02:52]}
18... Qc7 {[%clk 0:02:14.7]} 19. Rac1 {[%clk 0:02:45.1]} 19... Qb7 {[%clk
0:02:13.4]} 20. f3 {[%clk 0:02:30.8]} 20... Bd5 {[%clk 0:02:12.8]} 21. Rfd1
{[%clk 0:02:24.2]} 21... Bxc4 {[%clk 0:02:09.3]} 22. Nxc4 {[%clk 0:02:26.1]}
22... Rac8 {[%clk 0:02:10.3]} 23. Rd3 {[%clk 0:02:16.5]} 23... h5 {[%clk
0:02:01.1]} 24. Rcd1 {[%clk 0:02:17.3]} 24... h4 {[%clk 0:02:00.1]} 25. h3
{[%clk 0:02:12.4]} 25... Rc5 {[%clk 0:01:59.7]} 26. Qf2 {[%clk 0:02:09.9]} 26...
Rh5 {[%clk 0:01:52.4]} 27. Ne5 {[%clk 0:01:57.4]} 27... Qb5 {[%clk 0:01:40.1]}
28. Ng4 {[%clk 0:01:47.7]} 28... a6 {[%clk 0:01:16.8]} 29. Nxf6+ {[%clk
0:01:44]} 29... Bxf6 {[%clk 0:01:14.7]} 30. Bxf6 {[%clk 0:01:44.9]} 30... exf6
{[%clk 0:01:16.6]} 31. Rd4 {[%clk 0:01:44.8]} 31... Kg7 {[%clk 0:01:04.3]} 32.
Rxh4 {[%clk 0:01:39.2]} 32... Rxh4 {[%clk 0:01:06.2]} 33. Qxh4 {[%clk
0:01:40.3]} 33... Qe2 {[%clk 0:01:07.5]} 34. Rd6 {[%clk 0:01:35.2]} 34... Qe5
{[%clk 0:01:04.4]} 35. Qd4 {[%clk 0:01:33.3]} 35... Qf5 {[%clk 0:00:53.5]} 36.
Rxa6 {[%clk 0:01:31.3]} 36... Rc8 {[%clk 0:00:54.2]} 37. Kh2 {[%clk 0:01:29.4]}
37... Rc2 {[%clk 0:00:54]} 38. h4 {[%clk 0:01:26.6]} 38... Qxf3 {[%clk
0:00:52.6]} 39. Qg1 {[%clk 0:00:49.3]} 39... Qf4+ {[%clk 0:00:51.8]} 40. Kh3
{[%clk 0:00:49.8]} 40... g5 {[%clk 0:00:36.6]} 41. hxg5 {[%clk 0:00:43.4]} 41...
fxg5 {[%clk 0:00:37.3]} 42. Ra4 {[%clk 0:00:26.1]} 42... Qf5+ {[%clk 0:00:29]}
43. Kh2 {[%clk 0:00:21.5]} 43... Qh7+ {[%clk 0:00:22.5]} 44. Kg3 {[%clk
0:00:21.1]} 44... Rc3+ {[%clk 0:00:23.7]} 45. Kg4 {[%clk 0:00:12.9]} 45... Qh4+
{[%clk 0:00:14.4]} 46. Kf5 {[%clk 0:00:14.2]} 46... Qh7+ {[%clk 0:00:09.7]} 47.
Ke5 {[%clk 0:00:11.4]} 47... f6+ {[%clk 0:00:09]} 48. Kd5 {[%clk 0:00:08]} 48...
Qf5+ {[%clk 0:00:08.9]} 49. Kd4 {[%clk 0:00:05.9]} 49... Qe5# {[%clk 0:00:09.9]}
0-1

[Event "*** Titled Tuesday Blitz"]
[Site "Chess.com"]
[Date "2019.03.05"]
[Round "5"]
[White "Tocras"]
[Black "Witik"]
[Result "0-1"]
[WhiteElo "2613"]
[BlackElo "2674"]
[TimeControl "180+2"]
[EndTime "14:13:36 PST"]
[Termination "Witik won by resignation"]

1. e4 {[%clk 0:03:01.9]} 1... c6 {[%clk 0:02:59.9]} 2. d4 {[%clk 0:03:02.3]}
2... d5 {[%clk 0:03:01.2]} 3. exd5 {[%clk 0:03:01.7]} 3... cxd5 {[%clk
0:03:02.1]} 4. c3 {[%clk 0:03:02.1]} 4... Qc7 {[%clk 0:02:57.9]} 5. Nf3 {[%clk
0:02:37.6]} 5... Nc6 {[%clk 0:02:58.4]} 6. g3 {[%clk 0:02:38.9]} 6... Bg4 {[%clk
0:02:56.4]} 7. Bf4 {[%clk 0:02:37.1]} 7... Qd7 {[%clk 0:02:56.7]} 8. h3 {[%clk
0:02:30.3]} 8... Bh5 {[%clk 0:02:48.7]} 9. Be2 {[%clk 0:02:24.2]} 9... Nf6
{[%clk 0:02:40.5]} 10. Ne5 {[%clk 0:02:20.3]} 10... Bxe2 {[%clk 0:02:38.5]} 11.
Qxe2 {[%clk 0:02:18]} 11... Nxe5 {[%clk 0:02:33.4]} 12. dxe5 {[%clk 0:02:18.5]}
12... Ne4 {[%clk 0:02:34.9]} 13. f3 {[%clk 0:02:04.9]} 13... Nc5 {[%clk
0:02:19]} 14. Be3 {[%clk 0:02:06]} 14... e6 {[%clk 0:02:12.9]} 15. Nd2 {[%clk
0:02:05.6]} 15... Be7 {[%clk 0:02:09.4]} 16. Nb3 {[%clk 0:02:00.9]} 16... Na4
{[%clk 0:02:04.7]} 17. Nd4 {[%clk 0:01:58.7]} 17... O-O {[%clk 0:02:04.5]} 18.
f4 {[%clk 0:01:58.5]} 18... Nc5 {[%clk 0:01:46.4]} 19. O-O {[%clk 0:01:59.4]}
19... Ne4 {[%clk 0:01:47]} 20. Kh2 {[%clk 0:01:55.2]} 20... f6 {[%clk
0:01:47.9]} 21. Nf3 {[%clk 0:01:53.1]} 21... b6 {[%clk 0:01:21.5]} 22. Bd4
{[%clk 0:01:54]} 22... f5 {[%clk 0:01:21.4]} 23. Ne1 {[%clk 0:01:38.8]} 23...
Kh8 {[%clk 0:01:20]} 24. g4 {[%clk 0:01:33.8]} 24... g5 {[%clk 0:01:20.2]} 25.
Nd3 {[%clk 0:01:32.2]} 25... gxf4 {[%clk 0:01:12.1]} 26. Rxf4 {[%clk 0:01:30.2]}
26... Bc5 {[%clk 0:00:44.2]} 27. gxf5 {[%clk 0:01:25]} 27... Bxd4 {[%clk
0:00:45.3]} 28. cxd4 {[%clk 0:01:07.4]} 28... Rxf5 {[%clk 0:00:45.1]} 29. Rxf5
{[%clk 0:01:08.6]} 29... exf5 {[%clk 0:00:46.5]} 30. Rg1 {[%clk 0:01:08.7]}
30... Rg8 {[%clk 0:00:35]} 31. Rxg8+ {[%clk 0:01:09.7]} 31... Kxg8 {[%clk
0:00:36.9]} 32. Nf4 {[%clk 0:01:04.9]} 32... Qc6 {[%clk 0:00:36.9]} 33. Qg2+
{[%clk 0:01:02.3]} 33... Kf7 {[%clk 0:00:28.6]} 34. h4 {[%clk 0:01:03.1]} 34...
Qc1 {[%clk 0:00:21.6]} 35. e6+ {[%clk 0:01:00.9]} 35... Kf6 {[%clk 0:00:19.9]}
36. Nxd5+ {[%clk 0:00:57.5]} 36... Kxe6 {[%clk 0:00:20.8]} 37. Qg8+ {[%clk
0:00:57]} 37... Kd6 {[%clk 0:00:19]} 38. Qd8+ {[%clk 0:00:57.2]} 38... Ke6
{[%clk 0:00:18.8]} 39. Nc7+ {[%clk 0:00:56.9]} 39... Kf7 {[%clk 0:00:18]} 40.
Qe8+ {[%clk 0:00:57.9]} 40... Kg7 {[%clk 0:00:17]} 41. Qe7+ {[%clk 0:00:53.2]}
41... Kg6 {[%clk 0:00:18.3]} 42. Qe6+ {[%clk 0:00:51.6]} 42... Nf6 {[%clk
0:00:17.1]} 43. Ne8 {[%clk 0:00:50.3]} 43... Qxb2+ {[%clk 0:00:14.7]} 44. Kg1
{[%clk 0:00:49.9]} 44... Qxd4+ {[%clk 0:00:13.6]} 45. Kh2 {[%clk 0:00:47.3]}
45... Qxh4+ {[%clk 0:00:14.4]} 46. Kg1 {[%clk 0:00:47.5]} 46... Qg3+ {[%clk
0:00:14.6]} 47. Kf1 {[%clk 0:00:47.1]} 47... Qf3+ {[%clk 0:00:15.7]} 48. Kg1
{[%clk 0:00:48.1]} 48... Qg4+ {[%clk 0:00:16.9]} 49. Kf1 {[%clk 0:00:48.4]}
49... Qf4+ {[%clk 0:00:17.2]} 50. Kg1 {[%clk 0:00:49.7]} 50... Qd4+ {[%clk
0:00:18.2]} 51. Kh2 {[%clk 0:00:49.7]} 51... f4 {[%clk 0:00:16.6]} 52. Nd6
{[%clk 0:00:50.1]} 52... Qf2+ {[%clk 0:00:16.8]} 53. Kh1 {[%clk 0:00:49.6]}
53... Qf1+ {[%clk 0:00:18.2]} 54. Kh2 {[%clk 0:00:50.7]} 54... Qf2+ {[%clk
0:00:19.6]} 55. Kh1 {[%clk 0:00:52.1]} 55... Qh4+ {[%clk 0:00:21.2]} 56. Kg2
{[%clk 0:00:52.2]} 56... Qg5+ {[%clk 0:00:22.7]} 57. Kf1 {[%clk 0:00:51.5]}
57... Qd5 {[%clk 0:00:22.5]} 58. Qe7 {[%clk 0:00:41.3]} 58... f3 {[%clk
0:00:20.6]} 0-1